[Event "*** Titled Tuesday Blitz"]
[Site "Chess.com"]
[Date "2021.02.16"]
[Round "7"]
[White "Firouzja2003"]
[Black "Oleksandr_Bortnyk"]
[Result "1-0"]
[WhiteElo "3098"]
[BlackElo "2944"]
[TimeControl "180+1"]
[EndTime "11:19:35 PST"]
[Termination "Firouzja2003 won on time"]

1. d4 {[%clk 0:03:00.9]} 1... d6 {[%clk 0:02:56.2]} 2. e4 {[%clk 0:02:56.4]}
2... Nf6 {[%clk 0:02:56]} 3. Nc3 {[%clk 0:02:56.8]} 3... e5 {[%clk 0:02:54.8]}
4. Nf3 {[%clk 0:02:51.3]} 4... Nbd7 {[%clk 0:02:54.6]} 5. Bc4 {[%clk 0:02:43.2]}
5... Be7 {[%clk 0:02:53.3]} 6. O-O {[%clk 0:02:43.5]} 6... O-O {[%clk
0:02:51.4]} 7. h3 {[%clk 0:02:41.9]} 7... a6 {[%clk 0:02:50.8]} 8. a4 {[%clk
0:02:41.4]} 8... b6 {[%clk 0:02:50]} 9. dxe5 {[%clk 0:02:24.8]} 9... dxe5 {[%clk
0:02:36.3]} 10. Qe2 {[%clk 0:02:21.9]} 10... c6 {[%clk 0:02:16.9]} 11. Rd1
{[%clk 0:02:14.8]} 11... Qc7 {[%clk 0:02:15.7]} 12. Bg5 {[%clk 0:02:09.1]} 12...
Nc5 {[%clk 0:02:07.9]} 13. Bh4 {[%clk 0:01:55.2]} 13... Nh5 {[%clk 0:02:04.7]}
14. Bxe7 {[%clk 0:01:47.1]} 14... Qxe7 {[%clk 0:02:05.6]} 15. Qe3 {[%clk
0:01:47.6]} 15... a5 {[%clk 0:01:41.9]} 16. Rd2 {[%clk 0:01:43.6]} 16... Nf4
{[%clk 0:01:11]} 17. Rad1 {[%clk 0:01:41]} 17... Bd7 {[%clk 0:01:10.9]} 18. b3
{[%clk 0:01:32]} 18... Rae8 {[%clk 0:00:59.2]} 19. Ne2 {[%clk 0:01:22.5]} 19...
Nxe2+ {[%clk 0:00:52]} 20. Qxe2 {[%clk 0:01:23.4]} 20... h6 {[%clk 0:00:28.7]}
21. Qe3 {[%clk 0:01:17.8]} 21... Kh7 {[%clk 0:00:28.4]} 22. Rd6 {[%clk
0:01:15.5]} 22... Rc8 {[%clk 0:00:21.5]} 23. c3 {[%clk 0:01:12.8]} 23... Be8
{[%clk 0:00:16.2]} 24. g3 {[%clk 0:01:01.7]} 24... Rb8 {[%clk 0:00:13.1]} 25.
Nh4 {[%clk 0:01:02]} 25... g6 {[%clk 0:00:12]} 26. Nf3 {[%clk 0:00:45.2]} 26...
Kg7 {[%clk 0:00:12.4]} 27. h4 {[%clk 0:00:44.4]} 27... f6 {[%clk 0:00:06]} 28.
h5 {[%clk 0:00:36.3]} 28... g5 {[%clk 0:00:06]} 29. g4 {[%clk 0:00:34.4]} 29...
Rc8 {[%clk 0:00:06.1]} 30. Nh2 {[%clk 0:00:34.1]} 30... Rc7 {[%clk 0:00:06.3]}
31. Nf1 {[%clk 0:00:33.6]} 31... Bd7 {[%clk 0:00:04.1]} 32. Qe2 {[%clk
0:00:26.6]} 32... Bc8 {[%clk 0:00:04.1]} 33. Ng3 {[%clk 0:00:26.4]} 33... Nb7
{[%clk 0:00:04.6]} 34. R6d2 {[%clk 0:00:23.5]} 34... Kh7 {[%clk 0:00:04.6]} 35.
Kg2 {[%clk 0:00:23.5]} 35... Nc5 {[%clk 0:00:04.9]} 36. f3 {[%clk 0:00:22.3]}
36... Nb7 {[%clk 0:00:04.2]} 37. Qe3 {[%clk 0:00:22.7]} 37... Qc5 {[%clk
0:00:04.1]} 38. Qe1 {[%clk 0:00:19.2]} 38... Qe7 {[%clk 0:00:04.8]} 39. Nf1
{[%clk 0:00:17.1]} 39... Nc5 {[%clk 0:00:04.7]} 40. Ne3 {[%clk 0:00:17.2]} 40...
Nb7 {[%clk 0:00:05.2]} 41. Ra2 {[%clk 0:00:15.6]} 41... Be6 {[%clk 0:00:03.4]}
42. Bxe6 {[%clk 0:00:14.7]} 42... Qxe6 {[%clk 0:00:04.3]} 43. Rad2 {[%clk
0:00:13.8]} 43... Rff7 {[%clk 0:00:04.4]} 44. b4 {[%clk 0:00:10.2]} 44... Rfd7
{[%clk 0:00:04.1]} 45. Nf5 {[%clk 0:00:10.1]} 45... c5 {[%clk 0:00:04]} 46. b5
{[%clk 0:00:09.7]} 46... c4 {[%clk 0:00:04.4]} 47. Rd5 {[%clk 0:00:09.8]} 47...
Nc5 {[%clk 0:00:04.5]} 48. Rd6 {[%clk 0:00:07.9]} 48... Qf7 {[%clk 0:00:05]} 49.
R1d5 {[%clk 0:00:07.6]} 49... Nd3 {[%clk 0:00:05.2]} 50. Qe3 {[%clk 0:00:07.8]}
50... Nf4+ {[%clk 0:00:05.6]} 51. Kg3 {[%clk 0:00:07.4]} 51... Nxd5 {[%clk
0:00:06.5]} 52. exd5 {[%clk 0:00:04.9]} 52... Rxd6 {[%clk 0:00:06.6]} 53. Nxd6
{[%clk 0:00:05.6]} 53... Qxd5 {[%clk 0:00:07.2]} 54. Ne4 {[%clk 0:00:06.4]}
54... Qe6 {[%clk 0:00:06.7]} 55. Qd2 {[%clk 0:00:06.1]} 55... Rd7 {[%clk
0:00:07]} 56. Qxd7+ {[%clk 0:00:06.4]} 56... Qxd7 {[%clk 0:00:06]} 57. Nxf6+
{[%clk 0:00:06.8]} 57... Kg7 {[%clk 0:00:06.8]} 58. Nxd7 {[%clk 0:00:07.4]}
58... e4 {[%clk 0:00:02.4]} 59. fxe4 {[%clk 0:00:08.3]} 1-0

[Event "*** Titled Tuesday Blitz"]
[Site "Chess.com"]
[Date "2021.02.16"]
[Round "7"]
[White "Genghis_K"]
[Black "German_Bazeev"]
[Result "1-0"]
[WhiteElo "2912"]
[BlackElo "2739"]
[TimeControl "180+1"]
[EndTime "11:19:35 PST"]
[Termination "Genghis_K won by resignation"]

1. d4 {[%clk 0:02:54.3]} 1... Nf6 {[%clk 0:03:00]} 2. c4 {[%clk 0:02:54.1]} 2...
e6 {[%clk 0:02:58.5]} 3. Nc3 {[%clk 0:02:54.7]} 3... Bb4 {[%clk 0:02:57.6]} 4.
Qc2 {[%clk 0:02:55.4]} 4... d5 {[%clk 0:02:56.8]} 5. cxd5 {[%clk 0:02:55.6]}
5... Qxd5 {[%clk 0:02:57.4]} 6. e3 {[%clk 0:02:53.8]} 6... O-O {[%clk
0:02:43.8]} 7. Bd2 {[%clk 0:02:47.5]} 7... Bxc3 {[%clk 0:02:29.1]} 8. Bxc3
{[%clk 0:02:44.7]} 8... Ne4 {[%clk 0:02:12]} 9. Nf3 {[%clk 0:02:39.4]} 9... Nxc3
{[%clk 0:02:08.3]} 10. Qxc3 {[%clk 0:02:36.4]} 10... Nc6 {[%clk 0:02:03.8]} 11.
Be2 {[%clk 0:02:27.2]} 11... Qa5 {[%clk 0:02:04]} 12. Rc1 {[%clk 0:02:25.8]}
12... Qxc3+ {[%clk 0:02:02.3]} 13. Rxc3 {[%clk 0:02:25.5]} 13... Bd7 {[%clk
0:02:00.7]} 14. O-O {[%clk 0:02:21.6]} 14... Rfc8 {[%clk 0:01:58.1]} 15. Rfc1
{[%clk 0:02:22]} 15... a6 {[%clk 0:01:49.8]} 16. Ne1 {[%clk 0:02:22.2]} 16...
Be8 {[%clk 0:01:45.3]} 17. Nd3 {[%clk 0:02:20.1]} 17... Rab8 {[%clk 0:01:45.8]}
18. Bf3 {[%clk 0:02:18.4]} 18... Kf8 {[%clk 0:01:43.7]} 19. Nc5 {[%clk
0:02:17.9]} 19... Ke7 {[%clk 0:01:41.9]} 20. b3 {[%clk 0:02:15.1]} 20... Nd8
{[%clk 0:01:39.2]} 21. h4 {[%clk 0:02:05.9]} 21... c6 {[%clk 0:01:36.6]} 22. g4
{[%clk 0:02:03.9]} 22... f6 {[%clk 0:01:35.4]} 23. Kg2 {[%clk 0:02:04]} 23...
Nf7 {[%clk 0:01:35.5]} 24. Kg3 {[%clk 0:02:01.8]} 24... Nd6 {[%clk 0:01:32.8]}
25. e4 {[%clk 0:02:00.7]} 25... Nb5 {[%clk 0:01:32.2]} 26. Rd3 {[%clk
0:01:59.9]} 26... Rd8 {[%clk 0:01:32.8]} 27. Rcd1 {[%clk 0:01:58.4]} 27... Nc7
{[%clk 0:01:31.4]} 28. Re3 {[%clk 0:01:52.6]} 28... e5 {[%clk 0:01:21.1]} 29. d5
{[%clk 0:01:47.8]} 29... cxd5 {[%clk 0:01:19.1]} 30. exd5 {[%clk 0:01:48]} 30...
Bf7 {[%clk 0:00:49.7]} 31. Nxb7 {[%clk 0:01:38.1]} 31... Rxd5 {[%clk 0:00:45.5]}
32. Bxd5 {[%clk 0:01:12.5]} 32... Nxd5 {[%clk 0:00:43.9]} 33. Na5 {[%clk
0:00:55.8]} 33... Nxe3 {[%clk 0:00:43.6]} 34. Nc6+ {[%clk 0:00:56.2]} 34... Ke6
{[%clk 0:00:32.1]} 35. fxe3 {[%clk 0:00:57.1]} 35... Rc8 {[%clk 0:00:31.9]} 36.
Nd8+ {[%clk 0:00:55.2]} 36... Ke7 {[%clk 0:00:29.4]} 37. Nxf7 {[%clk 0:00:55.3]}
37... Kxf7 {[%clk 0:00:30.3]} 38. Rd7+ {[%clk 0:00:55.6]} 38... Kg6 {[%clk
0:00:27.6]} 39. Rd6 {[%clk 0:00:54.7]} 39... a5 {[%clk 0:00:25.3]} 40. Rd5
{[%clk 0:00:50.6]} 40... Ra8 {[%clk 0:00:23.9]} 41. a4 {[%clk 0:00:42]} 41... h5
{[%clk 0:00:21.9]} 42. g5 {[%clk 0:00:32]} 42... fxg5 {[%clk 0:00:19.3]} 43.
Rxe5 {[%clk 0:00:30.3]} 43... g4 {[%clk 0:00:09.2]} 44. Rg5+ {[%clk 0:00:26.9]}
44... Kh6 {[%clk 0:00:09]} 45. e4 {[%clk 0:00:23.6]} 45... Rc8 {[%clk
0:00:06.9]} 46. Rxa5 {[%clk 0:00:11]} 46... Rc3+ {[%clk 0:00:07.4]} 47. Kg2
{[%clk 0:00:11.4]} 47... Rxb3 {[%clk 0:00:07.1]} 48. Rb5 {[%clk 0:00:11.1]}
48... Ra3 {[%clk 0:00:05.8]} 49. a5 {[%clk 0:00:11.4]} 49... Kg6 {[%clk
0:00:05.9]} 50. Rb6+ {[%clk 0:00:11.2]} 50... Kh7 {[%clk 0:00:04.5]} 51. a6
{[%clk 0:00:11.2]} 51... g5 {[%clk 0:00:03.6]} 52. hxg5 {[%clk 0:00:08.4]} 52...
Kg7 {[%clk 0:00:02.3]} 53. Rh6 {[%clk 0:00:07.9]} 53... h4 {[%clk 0:00:02.1]}
54. Rxh4 {[%clk 0:00:06.6]} 54... Rxa6 {[%clk 0:00:02]} 55. Kg3 {[%clk
0:00:05.8]} 55... Kg6 {[%clk 0:00:02.9]} 56. Rh6+ {[%clk 0:00:05.5]} 1-0

[Event "*** Titled Tuesday Blitz"]
[Site "Chess.com"]
[Date "2021.02.16"]
[Round "7"]
[White "MaevskiyNikolay"]
[Black "olksuna"]
[Result "0-1"]
[WhiteElo "2533"]
[BlackElo "2693"]
[TimeControl "180+1"]
[EndTime "11:19:43 PST"]
[Termination "olksuna won by checkmate"]

1. d4 {[%clk 0:02:30.5]} 1... Nf6 {[%clk 0:02:58.9]} 2. c4 {[%clk 0:02:30.4]}
2... e6 {[%clk 0:02:59.1]} 3. Nf3 {[%clk 0:02:30.6]} 3... b6 {[%clk 0:02:58.9]}
4. Nc3 {[%clk 0:02:29.9]} 4... Bb7 {[%clk 0:02:57.7]} 5. Bg5 {[%clk 0:02:29.8]}
5... Bb4 {[%clk 0:02:54.4]} 6. Nd2 {[%clk 0:02:30.1]} 6... h6 {[%clk 0:02:47.3]}
7. Bh4 {[%clk 0:02:29.9]} 7... Nc6 {[%clk 0:02:43.8]} 8. e3 {[%clk 0:02:29.9]}
8... Ne7 {[%clk 0:02:42.6]} 9. f3 {[%clk 0:02:30.4]} 9... Nf5 {[%clk 0:02:39.4]}
10. Bf2 {[%clk 0:02:30.4]} 10... c5 {[%clk 0:02:39.9]} 11. a3 {[%clk 0:02:28.5]}
11... Ba5 {[%clk 0:02:29.4]} 12. Bd3 {[%clk 0:02:23.4]} 12... O-O {[%clk
0:02:14.2]} 13. d5 {[%clk 0:02:15.7]} 13... Bxc3 {[%clk 0:02:00.9]} 14. bxc3
{[%clk 0:02:15.2]} 14... d6 {[%clk 0:01:55.9]} 15. e4 {[%clk 0:02:07.4]} 15...
Ne7 {[%clk 0:01:54.2]} 16. O-O {[%clk 0:02:00.7]} 16... Ng6 {[%clk 0:01:53.4]}
17. Re1 {[%clk 0:02:00.1]} 17... Re8 {[%clk 0:01:51.5]} 18. a4 {[%clk
0:01:59.4]} 18... Ba6 {[%clk 0:01:46.7]} 19. Bf1 {[%clk 0:01:55.6]} 19... e5
{[%clk 0:01:33]} 20. g3 {[%clk 0:01:54]} 20... Bc8 {[%clk 0:01:32.3]} 21. a5
{[%clk 0:01:49.5]} 21... Bd7 {[%clk 0:01:30.7]} 22. axb6 {[%clk 0:01:45.1]}
22... axb6 {[%clk 0:01:31.6]} 23. Qb3 {[%clk 0:01:44.3]} 23... Qc7 {[%clk
0:01:27.4]} 24. Bd3 {[%clk 0:01:42]} 24... Nh7 {[%clk 0:01:22.4]} 25. h4 {[%clk
0:01:37.2]} 25... Ne7 {[%clk 0:01:20]} 26. Qc2 {[%clk 0:01:18]} 26... Rxa1
{[%clk 0:01:16.7]} 27. Rxa1 {[%clk 0:01:17.3]} 27... Rf8 {[%clk 0:01:17.6]} 28.
Nf1 {[%clk 0:00:55.9]} 28... f5 {[%clk 0:01:14.8]} 29. exf5 {[%clk 0:00:54.7]}
29... Bxf5 {[%clk 0:01:13.7]} 30. Nd2 {[%clk 0:00:46.5]} 30... Bxd3 {[%clk
0:01:05.2]} 31. Qxd3 {[%clk 0:00:46.3]} 31... Nf6 {[%clk 0:01:06.1]} 32. Kg2
{[%clk 0:00:42.1]} 32... Qd7 {[%clk 0:00:59.4]} 33. Rb1 {[%clk 0:00:40.6]} 33...
Rb8 {[%clk 0:00:44.5]} 34. Ne4 {[%clk 0:00:33.8]} 34... Nxe4 {[%clk 0:00:39.5]}
35. fxe4 {[%clk 0:00:33.3]} 35... Kh8 {[%clk 0:00:36.7]} 36. Be3 {[%clk
0:00:32.5]} 36... Ng8 {[%clk 0:00:36.9]} 37. Bd2 {[%clk 0:00:22.7]} 37... Nf6
{[%clk 0:00:33.7]} 38. Rf1 {[%clk 0:00:21.7]} 38... Ra8 {[%clk 0:00:25.7]} 39.
Bxh6 {[%clk 0:00:16.2]} 39... Ra2+ {[%clk 0:00:25.3]} 40. Bd2 {[%clk 0:00:15.6]}
40... Qg4 {[%clk 0:00:20.8]} 41. Rf2 {[%clk 0:00:11.8]} 41... Qxe4+ {[%clk
0:00:15.6]} 42. Qxe4 {[%clk 0:00:09]} 42... Nxe4 {[%clk 0:00:16.5]} 43. Be3
{[%clk 0:00:04.5]} 43... Nxf2 {[%clk 0:00:15.9]} 44. Bxf2 {[%clk 0:00:05.1]}
44... Rc2 {[%clk 0:00:16.1]} 45. Kf3 {[%clk 0:00:05.7]} 45... Rxc3+ {[%clk
0:00:16.3]} 46. Ke4 {[%clk 0:00:06.3]} 46... Rxc4+ {[%clk 0:00:16.3]} 47. Kf5
{[%clk 0:00:06.8]} 47... Rc2 {[%clk 0:00:14.7]} 48. Be3 {[%clk 0:00:07]} 48...
c4 {[%clk 0:00:15]} 49. Ke4 {[%clk 0:00:07]} 49... b5 {[%clk 0:00:14.4]} 50. g4
{[%clk 0:00:06.8]} 50... b4 {[%clk 0:00:12.2]} 51. h5 {[%clk 0:00:07.4]} 51...
b3 {[%clk 0:00:12.6]} 52. h6 {[%clk 0:00:07.1]} 52... b2 {[%clk 0:00:12.1]} 53.
hxg7+ {[%clk 0:00:08]} 53... Kg8 {[%clk 0:00:11.9]} 54. Kf5 {[%clk 0:00:08.9]}
54... b1=Q {[%clk 0:00:11.9]} 55. Ke6 {[%clk 0:00:09.8]} 55... Re2 {[%clk
0:00:10.6]} 56. Bg5 {[%clk 0:00:09.7]} 56... Qg6+ {[%clk 0:00:10.4]} 57. Kd7
{[%clk 0:00:08.8]} 57... Qxg5 {[%clk 0:00:09.9]} 58. Kxd6 {[%clk 0:00:09.7]}
58... e4 {[%clk 0:00:08.3]} 59. Kd7 {[%clk 0:00:10.1]} 59... Rd2 {[%clk
0:00:07.8]} 60. d6 {[%clk 0:00:11]} 60... Qe5 {[%clk 0:00:07.6]} 61. Kc8 {[%clk
0:00:10.6]} 61... Qxd6 {[%clk 0:00:07.7]} 62. Kb7 {[%clk 0:00:11.5]} 62... Rb2+
{[%clk 0:00:06.8]} 63. Ka7 {[%clk 0:00:12.4]} 63... Qb6+ {[%clk 0:00:06.6]} 64.
Ka8 {[%clk 0:00:12.6]} 64... Qa5# {[%clk 0:00:07]} 0-1

[Event "*** Titled Tuesday Blitz"]
[Site "Chess.com"]
[Date "2021.02.16"]
[Round "7"]
[White "EugeneRougon"]
[Black "SilviusTiberius"]
[Result "0-1"]
[WhiteElo "2726"]
[BlackElo "2589"]
[TimeControl "180+1"]
[EndTime "11:19:46 PST"]
[Termination "SilviusTiberius won on time"]

1. e4 {[%clk 0:03:00.9]} 1... e5 {[%clk 0:02:59.8]} 2. Nf3 {[%clk 0:03:00.8]}
2... Nc6 {[%clk 0:03:00.3]} 3. Bb5 {[%clk 0:03:00.4]} 3... Nf6 {[%clk
0:02:59.5]} 4. O-O {[%clk 0:02:58.9]} 4... Nxe4 {[%clk 0:02:58.9]} 5. d4 {[%clk
0:02:58.5]} 5... Nd6 {[%clk 0:02:57.9]} 6. Bxc6 {[%clk 0:02:58.8]} 6... dxc6
{[%clk 0:02:58.8]} 7. dxe5 {[%clk 0:02:59]} 7... Nf5 {[%clk 0:02:59.4]} 8. Qxd8+
{[%clk 0:02:59.5]} 8... Kxd8 {[%clk 0:03:00.3]} 9. h3 {[%clk 0:02:59.5]} 9... h5
{[%clk 0:02:59.4]} 10. Nc3 {[%clk 0:02:55.2]} 10... Ke8 {[%clk 0:02:59.1]} 11.
Bf4 {[%clk 0:02:52.8]} 11... Be6 {[%clk 0:02:58.8]} 12. Ng5 {[%clk 0:02:48.8]}
12... Rh6 {[%clk 0:02:58.4]} 13. g3 {[%clk 0:02:31.9]} 13... Rg6 {[%clk
0:02:50.7]} 14. Rad1 {[%clk 0:02:13]} 14... Rd8 {[%clk 0:02:50.5]} 15. Rxd8+
{[%clk 0:02:09.3]} 15... Kxd8 {[%clk 0:02:51.4]} 16. Rd1+ {[%clk 0:02:09.2]}
16... Ke8 {[%clk 0:02:47.4]} 17. a3 {[%clk 0:02:08.1]} 17... Be7 {[%clk
0:02:43]} 18. h4 {[%clk 0:01:50.4]} 18... Bc8 {[%clk 0:02:29.6]} 19. Kh2 {[%clk
0:01:46.3]} 19... f6 {[%clk 0:02:21.3]} 20. exf6 {[%clk 0:01:30.9]} 20... gxf6
{[%clk 0:02:22.2]} 21. Nge4 {[%clk 0:01:29]} 21... Bd8 {[%clk 0:02:00.3]} 22.
Re1 {[%clk 0:01:11.1]} 22... Kf7 {[%clk 0:01:53]} 23. Rd1 {[%clk 0:01:10.8]}
23... Ke8 {[%clk 0:01:52.6]} 24. Nc5 {[%clk 0:00:42]} 24... b6 {[%clk
0:01:45.3]} 25. Nd3 {[%clk 0:00:39.8]} 25... Nd4 {[%clk 0:01:43.2]} 26. Nb4
{[%clk 0:00:29.8]} 26... Nf3+ {[%clk 0:01:38.9]} 27. Kh1 {[%clk 0:00:26.2]}
27... Bb7 {[%clk 0:01:29.6]} 28. Rd3 {[%clk 0:00:24.5]} 28... a5 {[%clk
0:01:27.3]} 29. Rxf3 {[%clk 0:00:20.9]} 29... axb4 {[%clk 0:01:27.4]} 30. Re3+
{[%clk 0:00:20.7]} 30... Kd7 {[%clk 0:01:24.8]} 31. axb4 {[%clk 0:00:20.5]}
31... c5+ {[%clk 0:01:25.2]} 32. Kg1 {[%clk 0:00:17.6]} 32... cxb4 {[%clk
0:01:25.5]} 33. Ne4 {[%clk 0:00:16.9]} 33... Be7 {[%clk 0:01:21.9]} 34. Rd3+
{[%clk 0:00:15.6]} 34... Kc8 {[%clk 0:01:21.8]} 35. Nd2 {[%clk 0:00:15.3]} 35...
f5 {[%clk 0:01:18.3]} 36. b3 {[%clk 0:00:15.2]} 36... Bxh4 {[%clk 0:01:17.8]}
37. Kh2 {[%clk 0:00:14.1]} 37... Be7 {[%clk 0:01:16.7]} 38. Nc4 {[%clk
0:00:14.3]} 38... h4 {[%clk 0:01:15.5]} 39. Ne3 {[%clk 0:00:12.8]} 39... hxg3+
{[%clk 0:01:15.8]} 40. fxg3 {[%clk 0:00:13.7]} 40... Bc5 {[%clk 0:01:13.7]} 41.
Nxf5 {[%clk 0:00:12.1]} 41... Be4 {[%clk 0:01:12.7]} 42. Nh4 {[%clk 0:00:11.6]}
42... Bxd3 {[%clk 0:01:11.4]} 43. cxd3 {[%clk 0:00:12.5]} 43... Rc6 {[%clk
0:01:06.4]} 44. g4 {[%clk 0:00:12.3]} 44... Bd6 {[%clk 0:00:59.4]} 45. Kg3
{[%clk 0:00:10.9]} 45... Rc3 {[%clk 0:00:58.1]} 46. Bxd6 {[%clk 0:00:09.9]}
46... Rxd3+ {[%clk 0:00:58.2]} 47. Kf4 {[%clk 0:00:10.8]} 47... cxd6 {[%clk
0:00:58]} 48. g5 {[%clk 0:00:11.1]} 48... Rxb3 {[%clk 0:00:55.4]} 49. g6 {[%clk
0:00:11.1]} 49... Rb1 {[%clk 0:00:51.8]} 50. Nf5 {[%clk 0:00:10.4]} 50... Rf1+
{[%clk 0:00:50.1]} 51. Kg4 {[%clk 0:00:10.2]} 51... Rg1+ {[%clk 0:00:24.9]} 52.
Ng3 {[%clk 0:00:09.8]} 52... Re1 {[%clk 0:00:23.5]} 53. g7 {[%clk 0:00:08.9]}
53... Re8 {[%clk 0:00:22.9]} 54. Nf5 {[%clk 0:00:09.6]} 54... Kd7 {[%clk
0:00:22.7]} 55. Nh6 {[%clk 0:00:04.6]} 55... b3 {[%clk 0:00:21.8]} 56. Kg5
{[%clk 0:00:02.6]} 56... b2 {[%clk 0:00:21.7]} 57. Ng4 {[%clk 0:00:03.5]} 57...
Ke6 {[%clk 0:00:17.7]} 58. Nf6 {[%clk 0:00:02.4]} 58... Rc8 {[%clk 0:00:17.7]}
59. Nh7 {[%clk 0:00:02.5]} 59... Rg8 {[%clk 0:00:15.5]} 60. Kg6 {[%clk
0:00:01.5]} 60... b1=Q+ {[%clk 0:00:14.2]} 0-1

[Event "*** Titled Tuesday Blitz"]
[Site "Chess.com"]
[Date "2021.02.16"]
[Round "7"]
[White "KruHor"]
[Black "BikingBrian"]
[Result "1-0"]
[WhiteElo "2520"]
[BlackElo "2313"]
[TimeControl "180+1"]
[EndTime "11:19:46 PST"]
[Termination "KruHor won by resignation"]

1. e4 {[%clk 0:02:58.5]} 1... c5 {[%clk 0:02:58.6]} 2. Nf3 {[%clk 0:02:57.9]}
2... g6 {[%clk 0:02:58.5]} 3. c3 {[%clk 0:02:56.8]} 3... Bg7 {[%clk 0:02:58]} 4.
d4 {[%clk 0:02:56.3]} 4... cxd4 {[%clk 0:02:58.9]} 5. cxd4 {[%clk 0:02:56]} 5...
d5 {[%clk 0:02:59.3]} 6. exd5 {[%clk 0:02:55.9]} 6... Nf6 {[%clk 0:02:58.9]} 7.
Bb5+ {[%clk 0:02:55.1]} 7... Nbd7 {[%clk 0:02:58.9]} 8. Nc3 {[%clk 0:02:54.2]}
8... O-O {[%clk 0:02:58.6]} 9. O-O {[%clk 0:02:50.6]} 9... Nb6 {[%clk
0:02:58.8]} 10. Re1 {[%clk 0:02:49.9]} 10... Nbxd5 {[%clk 0:02:52]} 11. h3
{[%clk 0:02:49.3]} 11... e6 {[%clk 0:02:38.4]} 12. Bg5 {[%clk 0:02:47.7]} 12...
Qd6 {[%clk 0:02:23.6]} 13. Rc1 {[%clk 0:02:45.9]} 13... Bd7 {[%clk 0:02:21.5]}
14. Bxf6 {[%clk 0:02:42.4]} 14... Bxf6 {[%clk 0:02:12.8]} 15. Ne4 {[%clk
0:02:40.6]} 15... Qe7 {[%clk 0:02:10.1]} 16. Bc4 {[%clk 0:02:34.3]} 16... Bc6
{[%clk 0:02:03.4]} 17. Ne5 {[%clk 0:02:28.9]} 17... Bxe5 {[%clk 0:02:02.4]} 18.
dxe5 {[%clk 0:02:27.8]} 18... Rad8 {[%clk 0:01:48.9]} 19. Bxd5 {[%clk
0:02:26.9]} 19... Bxd5 {[%clk 0:01:46.4]} 20. Nf6+ {[%clk 0:02:25.9]} 20... Kg7
{[%clk 0:01:41.8]} 21. Qa4 {[%clk 0:02:24.7]} 21... h6 {[%clk 0:01:19.5]} 22.
Rc3 {[%clk 0:02:20.5]} 22... Rc8 {[%clk 0:01:17]} 23. Rg3 {[%clk 0:02:18.8]}
23... Rc4 {[%clk 0:01:13.5]} 24. Qxa7 {[%clk 0:02:14.9]} 24... Qc7 {[%clk
0:01:07.4]} 25. Qe3 {[%clk 0:02:11.4]} 25... Rc8 {[%clk 0:01:00]} 26. b3 {[%clk
0:01:46.7]} 26... Rc3 {[%clk 0:00:53]} 27. Ne8+ {[%clk 0:01:36.4]} 27... Rxe8
{[%clk 0:00:50.5]} 28. Qxc3 {[%clk 0:01:35.9]} 28... Qd7 {[%clk 0:00:45.4]} 29.
Qd4 {[%clk 0:01:32.9]} 29... Rc8 {[%clk 0:00:43.7]} 30. Qf4 {[%clk 0:01:27.9]}
30... Qe7 {[%clk 0:00:41.3]} 31. Rc1 {[%clk 0:01:25.6]} 31... Bc6 {[%clk
0:00:34.9]} 32. h4 {[%clk 0:01:15.8]} 32... h5 {[%clk 0:00:27.1]} 33. Rf3 {[%clk
0:01:06.4]} 33... Rd8 {[%clk 0:00:22.9]} 34. Qf6+ {[%clk 0:01:04.1]} 34... Qxf6
{[%clk 0:00:19.8]} 35. exf6+ {[%clk 0:01:03.9]} 35... Kh6 {[%clk 0:00:18]} 36.
Rf4 {[%clk 0:01:03.8]} 36... g5 {[%clk 0:00:18.1]} 37. hxg5+ {[%clk 0:01:02.8]}
37... Kxg5 {[%clk 0:00:19]} 38. g3 {[%clk 0:01:02.4]} 38... h4 {[%clk
0:00:18.1]} 39. Rxh4 {[%clk 0:01:01.2]} 39... Kxf6 {[%clk 0:00:17.4]} 40. Kf1
{[%clk 0:00:59.9]} 40... Rd2 {[%clk 0:00:16]} 41. a4 {[%clk 0:00:58.5]} 41...
Rb2 {[%clk 0:00:15.5]} 42. Rb4 {[%clk 0:00:55.8]} 42... Bd5 {[%clk 0:00:12.3]}
43. Rc3 {[%clk 0:00:54]} 43... e5 {[%clk 0:00:11]} 44. Rb5 {[%clk 0:00:47.8]}
44... Bc6 {[%clk 0:00:10.9]} 45. Rb6 {[%clk 0:00:47]} 45... Kf5 {[%clk
0:00:08.9]} 46. a5 {[%clk 0:00:45.9]} 46... Bd5 {[%clk 0:00:04.9]} 47. b4 {[%clk
0:00:35.6]} 47... f6 {[%clk 0:00:04.9]} 48. b5 {[%clk 0:00:31.8]} 48... Rb1+
{[%clk 0:00:04.9]} 49. Ke2 {[%clk 0:00:31.1]} 49... Rb2+ {[%clk 0:00:05.4]} 50.
Ke3 {[%clk 0:00:30.9]} 50... Rb4 {[%clk 0:00:05.2]} 51. f3 {[%clk 0:00:28.7]}
51... Rb1 {[%clk 0:00:04.6]} 52. g4+ {[%clk 0:00:27.9]} 52... Kg5 {[%clk
0:00:04.1]} 53. Rd3 {[%clk 0:00:24.4]} 53... Bc4 {[%clk 0:00:03.5]} 54. Rd8
{[%clk 0:00:23.1]} 54... Rxb5 {[%clk 0:00:02.7]} 55. Rg8+ {[%clk 0:00:20.5]}
55... Kh6 {[%clk 0:00:02.1]} 56. Rxf6+ {[%clk 0:00:19.3]} 56... Kh7 {[%clk
0:00:02.3]} 57. Ra8 {[%clk 0:00:18.7]} 57... Bd5 {[%clk 0:00:01.4]} 58. g5
{[%clk 0:00:17.8]} 58... Kg7 {[%clk 0:00:01.7]} 59. Kf2 {[%clk 0:00:16.2]} 59...
Rb3 {[%clk 0:00:01.9]} 60. Kg3 {[%clk 0:00:16.3]} 60... e4 {[%clk 0:00:01.9]}
61. Rd8 {[%clk 0:00:14.5]} 61... exf3 {[%clk 0:00:02.7]} 62. Rxd5 {[%clk
0:00:14.1]} 62... f2+ {[%clk 0:00:02.2]} 63. Kxf2 {[%clk 0:00:13]} 63... Ra3
{[%clk 0:00:02.9]} 64. Rd7+ {[%clk 0:00:12.7]} 64... Kg8 {[%clk 0:00:03.2]} 65.
Re6 {[%clk 0:00:11.7]} 65... Kf8 {[%clk 0:00:02.9]} 66. g6 {[%clk 0:00:11.7]}
66... Rxa5 {[%clk 0:00:03]} 67. g7+ {[%clk 0:00:11.1]} 67... Kg8 {[%clk
0:00:03.4]} 68. Re8+ {[%clk 0:00:10.9]} 1-0